[Event "Titled Tuesday Blitz January 31 Late 2023"]
[White "Toncheva, Nadya"]
[Black "Fernandez Siles, Luis"]
[WhiteFideId "2924056"]
[BlackFideId "2209420"]
[WhiteElo "2295"]
[BlackElo "2218"]
[Result "0-1"]
[Round "08"]
[TimeControl "180+2"]
[Date "2023.01.31"]
[WhiteClock "0:00:04"]
[BlackClock "0:01:00"]

1. d4 {[%clk 0:03:00]}  Nf6 {[%clk 0:02:58]} 2. c4 {[%clk 0:03:01]}  g6 {[%clk 0:02:59]} 3. Nc3 {[%clk 0:03:01]}  Bg7 {[%clk 0:02:59]} 4. e4 {[%clk 0:03:01]}  d6 {[%clk 0:02:59]} 5. Be2 {[%clk 0:03:01]}  O-O {[%clk 0:02:59]} 6. Bg5 {[%clk 0:03:01]}  c6 {[%clk 0:02:57]} 7. Qd2 {[%clk 0:03:01]}  a6 {[%clk 0:02:58]} 8. h4 {[%clk 0:03:00]}  b5 {[%clk 0:02:53]} 9. a3 {[%clk 0:02:28]}  bxc4 {[%clk 0:02:49]} 10. Bxc4 {[%clk 0:02:28]}  d5 {[%clk 0:02:49]} 11. exd5 {[%clk 0:02:22]}  Nxd5 {[%clk 0:02:42]} 12. Nxd5 {[%clk 0:02:18]}  cxd5 {[%clk 0:02:41]} 13. Be2 {[%clk 0:02:13]}  Qb6 {[%clk 0:02:39]} 14. Nf3 {[%clk 0:02:12]}  Bg4 {[%clk 0:02:39]} 15. Bxe7 {[%clk 0:02:05]}  Re8 {[%clk 0:02:28]} 16. Bc5 {[%clk 0:02:05]}  Qb5 {[%clk 0:02:19]} 17. a4 {[%clk 0:01:50]}  Qc4 {[%clk 0:02:19]} 18. Kf1 {[%clk 0:01:32]}  Qb3 {[%clk 0:02:09]} 19. Ra3 {[%clk 0:01:30]}  Qb7 {[%clk 0:02:08]} 20. g3 {[%clk 0:01:12]}  Nd7 {[%clk 0:01:57]} 21. Bd6 {[%clk 0:01:02]}  Nf6 {[%clk 0:01:54]} 22. Bf4 {[%clk 0:00:39]}  Ne4 {[%clk 0:01:48]} 23. Qc2 {[%clk 0:00:28]}  Rac8 {[%clk 0:01:47]} 24. Rb3 {[%clk 0:00:10]}  Rxc2 {[%clk 0:01:39]} 25. Rxb7 {[%clk 0:00:10]}  Rxe2 {[%clk 0:01:39]} 26. Kxe2 {[%clk 0:00:07]}  Nd6+ {[%clk 0:01:35]} 27. Kd2 {[%clk 0:00:04]}  Nxb7 {[%clk 0:01:35]} 28. Ne5 {[%clk 0:00:04]}  Bf5 {[%clk 0:01:28]} 29. Rc1 {[%clk 0:00:03]}  Nd6 {[%clk 0:01:28]} 30. Rc7 {[%clk 0:00:03]}  Nc4+ {[%clk 0:01:25]} 31. Nxc4 {[%clk 0:00:02]}  dxc4 {[%clk 0:01:26]} 32. Rxc4 {[%clk 0:00:03]}  Rd8 {[%clk 0:01:25]} 33. Kc3 {[%clk 0:00:03]}  Be6 {[%clk 0:01:25]} 34. Rb4 {[%clk 0:00:03]}  a5 {[%clk 0:01:26]} 35. Rb8 {[%clk 0:00:04]}  Bxd4+ {[%clk 0:01:24]} 36. Kc2 {[%clk 0:00:04]}  Rxb8 {[%clk 0:01:24]} 37. Bxb8 {[%clk 0:00:05]}  Bxf2 {[%clk 0:01:24]} 38. Bd6 {[%clk 0:00:05]}  Bb6 {[%clk 0:01:21]} 39. Kc3 {[%clk 0:00:05]}  Bd7 {[%clk 0:01:18]} 40. b4 {[%clk 0:00:05]}  Bxa4 {[%clk 0:01:17]} 41. bxa5 {[%clk 0:00:04]}  Bxa5+ {[%clk 0:01:17]} 42. Kd4 {[%clk 0:00:05]}  Kg7 {[%clk 0:01:15]} 43. Ke4 {[%clk 0:00:06]}  f6 {[%clk 0:01:15]} 44. Kf4 {[%clk 0:00:06]}  Bd7 {[%clk 0:01:14]} 45. g4 {[%clk 0:00:05]}  Bd2+ {[%clk 0:01:13]} 46. Kf3 {[%clk 0:00:06]}  Kf7 {[%clk 0:01:12]} 47. Bc7 {[%clk 0:00:05]}  Ke6 {[%clk 0:01:12]} 48. Bb6 {[%clk 0:00:05]}  Kd5 {[%clk 0:01:11]} 49. Ba7 {[%clk 0:00:05]}  Bc3 {[%clk 0:01:11]} 50. Bb6 {[%clk 0:00:04]}  Bb5 {[%clk 0:01:10]} 51. Kg3 {[%clk 0:00:04]}  Be5+ {[%clk 0:01:09]} 52. Kf3 {[%clk 0:00:04]}  Bd3 {[%clk 0:01:09]} 53. Ba7 {[%clk 0:00:04]}  Be4+ {[%clk 0:01:09]} 54. Kf2 {[%clk 0:00:05]}  Bf4 {[%clk 0:01:07]} 55. Bb6 {[%clk 0:00:04]}  Be5 {[%clk 0:01:08]} 56. Bd8 {[%clk 0:00:04]}  Ke6 {[%clk 0:01:04]} 57. Ba5 {[%clk 0:00:04]}  Bd4+ {[%clk 0:01:04]} 58. Kg3 {[%clk 0:00:04]}  f5 {[%clk 0:01:02]} 59. gxf5+ {[%clk 0:00:04]}  gxf5 {[%clk 0:01:03]} 60. Bc7 {[%clk 0:00:04]}  Be5+ {[%clk 0:01:03]} 61. Bxe5 {[%clk 0:00:03]}  Kxe5 {[%clk 0:01:04]} 62. h5 {[%clk 0:00:04]}  f4+ {[%clk 0:01:04]} 63. Kg4 {[%clk 0:00:04]}  f3 {[%clk 0:01:04]} 64. Kg3 {[%clk 0:00:05]}  Kf5 {[%clk 0:01:04]} 65. h6 {[%clk 0:00:06]}  Kg5 {[%clk 0:01:04]} 66. Kf2 {[%clk 0:00:05]}  Kf4 {[%clk 0:01:04]} 67. Kg1 {[%clk 0:00:05]}  Ke3 {[%clk 0:01:04]} 68. Kf1 {[%clk 0:00:05]}  Bd3+ {[%clk 0:01:05]} 69. Kg1 {[%clk 0:00:06]}  f2+ {[%clk 0:01:05]} 70. Kh2 {[%clk 0:00:05]}  f1=Q {[%clk 0:01:03]} 71. Kg3 {[%clk 0:00:05]}  Qf4+ {[%clk 0:01:04]} 72. Kg2 {[%clk 0:00:05]}  Be4+ {[%clk 0:01:04]} 73. Kh3 {[%clk 0:00:04]}  Bf5+ {[%clk 0:01:02]} 74. Kg2 {[%clk 0:00:05]}  Qg4+ {[%clk 0:01:01]} 75. Kf1 {[%clk 0:00:04]}  Bd3+ {[%clk 0:01:00]} 76. Ke1 {[%clk 0:00:04]}  Qe2# {[%clk 0:01:00]} 0-1


[Site "https://www.chess.com"]

[Event "Titled Tuesday Blitz January 31 Late 2023"]
[White "EdmundPlayer"]
[Black "Graif, William"]
[BlackFideId "2609835"]
[WhiteElo "2313"]
[BlackElo "2304"]
[Result "0-1"]
[Round "08"]
[TimeControl "180+2"]
[Date "2023.01.31"]
[WhiteClock "0:00:01"]
[BlackClock "0:00:12"]

1. e4 {[%clk 0:03:00]}  e5 {[%clk 0:02:59]} 2. Nf3 {[%clk 0:02:57]}  Bc5 {[%clk 0:02:59]} 3. Bc4 {[%clk 0:02:43]}  Nf6 {[%clk 0:02:59]} 4. d3 {[%clk 0:02:40]}  Nc6 {[%clk 0:02:59]} 5. c3 {[%clk 0:02:39]}  d6 {[%clk 0:02:54]} 6. a4 {[%clk 0:02:39]}  a6 {[%clk 0:02:52]} 7. Na3 {[%clk 0:02:26]}  h6 {[%clk 0:02:33]} 8. Nc2 {[%clk 0:02:21]}  O-O {[%clk 0:02:31]} 9. b4 {[%clk 0:02:21]}  Ba7 {[%clk 0:02:30]} 10. Be3 {[%clk 0:02:22]}  d5 {[%clk 0:02:20]} 11. exd5 {[%clk 0:02:14]}  Nxd5 {[%clk 0:02:19]} 12. Bxa7 {[%clk 0:02:09]}  Rxa7 {[%clk 0:02:18]} 13. Qd2 {[%clk 0:02:03]}  Nb6 {[%clk 0:02:00]} 14. Ne3 {[%clk 0:01:56]}  Bf5 {[%clk 0:01:53]} 15. Nxf5 {[%clk 0:01:53]}  e4 {[%clk 0:01:36]} 16. N3d4 {[%clk 0:01:46]}  Ne5 {[%clk 0:01:29]} 17. O-O {[%clk 0:01:25]}  a5 {[%clk 0:01:18]} 18. Ne3 {[%clk 0:01:12]}  axb4 {[%clk 0:01:14]} 19. Nb5 {[%clk 0:01:04]}  Ra8 {[%clk 0:00:50]} 20. Rfd1 {[%clk 0:00:43]}  Qg5 {[%clk 0:00:35]} 21. Kh1 {[%clk 0:00:27]}  Rad8 {[%clk 0:00:34]} 22. Qe2 {[%clk 0:00:14]}  exd3 {[%clk 0:00:30]} 23. Bxd3 {[%clk 0:00:12]}  b3 {[%clk 0:00:27]} 24. Rab1 {[%clk 0:00:11]}  Nxa4 {[%clk 0:00:21]} 25. Be4 {[%clk 0:00:09]}  c6 {[%clk 0:00:19]} 26. Ra1 {[%clk 0:00:06]}  cxb5 {[%clk 0:00:17]} 27. Qxb5 {[%clk 0:00:06]}  Rxd1+ {[%clk 0:00:15]} 28. Rxd1 {[%clk 0:00:05]}  Nxc3 {[%clk 0:00:15]} 29. Qxb3 {[%clk 0:00:06]}  Nxd1 {[%clk 0:00:15]} 30. Qxd1 {[%clk 0:00:06]}  Rd8 {[%clk 0:00:14]} 31. Qe2 {[%clk 0:00:05]}  Qf4 {[%clk 0:00:14]} 32. Bxb7 {[%clk 0:00:04]}  Qb4 {[%clk 0:00:14]} 33. Bd5 {[%clk 0:00:02]}  Qb1+ {[%clk 0:00:13]} 34. Nf1 {[%clk 0:00:02]}  Rxd5 {[%clk 0:00:13]} 35. g4 {[%clk 0:00:01]}  Qd3 {[%clk 0:00:11]} 36. Kg2 {[%clk 0:00:02]}  Qxe2 {[%clk 0:00:11]} 37. h4 {[%clk 0:00:02]}  Qf3+ {[%clk 0:00:11]} 38. Kh2 {[%clk 0:00:02]}  Nxg4+ {[%clk 0:00:11]} 39. Kg1 {[%clk 0:00:01]}  Qxf2+ {[%clk 0:00:12]} 0-1


[Site "https://www.chess.com"]

[Event "Titled Tuesday Blitz January 31 Late 2023"]
[White "Ruiz Aguilar, Pablo Alexander"]
[Black "Marczuk, Dominik"]
[WhiteFideId "4401352"]
[BlackFideId "1111264"]
[WhiteElo "2161"]
[BlackElo "2253"]
[Result "0-1"]
[Round "08"]
[TimeControl "180+2"]
[Date "2023.01.31"]
[WhiteClock "0:00:21"]
[BlackClock "0:00:46"]

1. e4 {[%clk 0:03:00]}  c5 {[%clk 0:03:00]} 2. Nf3 {[%clk 0:03:01]}  Nc6 {[%clk 0:03:00]} 3. d4 {[%clk 0:03:01]}  cxd4 {[%clk 0:03:00]} 4. Nxd4 {[%clk 0:03:02]}  g6 {[%clk 0:03:01]} 5. Nc3 {[%clk 0:03:02]}  Bg7 {[%clk 0:02:54]} 6. Be3 {[%clk 0:03:03]}  Nf6 {[%clk 0:02:55]} 7. Bc4 {[%clk 0:03:03]}  O-O {[%clk 0:02:55]} 8. Bb3 {[%clk 0:03:03]}  Re8 {[%clk 0:02:55]} 9. Nxc6 {[%clk 0:02:56]}  bxc6 {[%clk 0:02:54]} 10. O-O {[%clk 0:02:55]}  a5 {[%clk 0:02:43]} 11. a4 {[%clk 0:02:51]}  Bb7 {[%clk 0:02:38]} 12. h3 {[%clk 0:02:49]}  d5 {[%clk 0:02:38]} 13. e5 {[%clk 0:02:35]}  Ne4 {[%clk 0:02:31]} 14. Nxe4 {[%clk 0:02:29]}  dxe4 {[%clk 0:02:32]} 15. Qg4 {[%clk 0:02:30]}  Bxe5 {[%clk 0:02:27]} 16. Rad1 {[%clk 0:02:25]}  Qc8 {[%clk 0:02:17]} 17. Qxe4 {[%clk 0:02:24]}  Bxb2 {[%clk 0:02:14]} 18. Qc4 {[%clk 0:02:12]}  e6 {[%clk 0:02:11]} 19. Qh4 {[%clk 0:02:08]}  c5 {[%clk 0:01:57]} 20. Bc4 {[%clk 0:02:04]}  Qc6 {[%clk 0:01:52]} 21. f3 {[%clk 0:02:00]}  Qxa4 {[%clk 0:01:46]} 22. Rb1 {[%clk 0:01:51]}  Qa3 {[%clk 0:01:31]} 23. Bg5 {[%clk 0:01:44]}  Bd4+ {[%clk 0:01:28]} 24. Kh1 {[%clk 0:01:44]}  Bc6 {[%clk 0:01:22]} 25. Rb6 {[%clk 0:01:39]}  Bd5 {[%clk 0:01:16]} 26. Bxd5 {[%clk 0:01:35]}  exd5 {[%clk 0:01:17]} 27. Bf6 {[%clk 0:01:35]}  Bxf6 {[%clk 0:01:15]} 28. Qxf6 {[%clk 0:01:35]}  Qe3 {[%clk 0:01:11]} 29. Rb7 {[%clk 0:01:17]}  Qe6 {[%clk 0:01:11]} 30. Qc3 {[%clk 0:01:15]}  c4 {[%clk 0:01:03]} 31. Rfb1 {[%clk 0:01:13]}  a4 {[%clk 0:01:02]} 32. R7b6 {[%clk 0:01:05]}  Qe5 {[%clk 0:01:01]} 33. Qxe5 {[%clk 0:00:51]}  Rxe5 {[%clk 0:01:01]} 34. Ra1 {[%clk 0:00:49]}  a3 {[%clk 0:00:59]} 35. Ra2 {[%clk 0:00:47]}  d4 {[%clk 0:00:46]} 36. Rc6 {[%clk 0:00:46]}  d3 {[%clk 0:00:45]} 37. cxd3 {[%clk 0:00:34]}  cxd3 {[%clk 0:00:46]} 38. Rd6 {[%clk 0:00:21]}  Re2 {[%clk 0:00:46]} 0-1


[Site "https://www.chess.com"]

[Event "Titled Tuesday Blitz January 31 Late 2023"]
[White "Garrido, Denis"]
[Black "Novikov, Evgenij"]
[WhiteFideId "601217"]
[BlackFideId "4125380"]
[WhiteElo "2205"]
[BlackElo "2276"]
[Result "0-1"]
[Round "08"]
[TimeControl "180+2"]
[Date "2023.01.31"]
[WhiteClock "0:01:35"]
[BlackClock "0:01:24"]

1. e4 {[%clk 0:03:00]}  c5 {[%clk 0:02:56]} 2. Nf3 {[%clk 0:03:00]}  e6 {[%clk 0:02:55]} 3. d4 {[%clk 0:03:00]}  cxd4 {[%clk 0:02:55]} 4. Nxd4 {[%clk 0:03:01]}  Nc6 {[%clk 0:02:54]} 5. Nc3 {[%clk 0:03:01]}  a6 {[%clk 0:02:52]} 6. Nxc6 {[%clk 0:02:58]}  bxc6 {[%clk 0:02:52]} 7. Qd3 {[%clk 0:02:58]}  d5 {[%clk 0:02:52]} 8. Qg3 {[%clk 0:02:55]}  Ne7 {[%clk 0:02:41]} 9. Bd3 {[%clk 0:02:53]}  Ng6 {[%clk 0:02:38]} 10. h4 {[%clk 0:02:41]}  Bd6 {[%clk 0:02:32]} 11. Qf3 {[%clk 0:02:32]}  Ne5 {[%clk 0:02:24]} 12. Qe2 {[%clk 0:02:31]}  Nxd3+ {[%clk 0:02:23]} 13. Qxd3 {[%clk 0:02:31]}  a5 {[%clk 0:02:21]} 14. Bg5 {[%clk 0:02:30]}  Qb6 {[%clk 0:02:16]} 15. exd5 {[%clk 0:02:21]}  cxd5 {[%clk 0:02:13]} 16. O-O-O {[%clk 0:02:14]}  Ba6 {[%clk 0:02:05]} 17. Qf3 {[%clk 0:02:12]}  Rb8 {[%clk 0:01:52]} 18. b3 {[%clk 0:02:10]}  O-O {[%clk 0:01:48]} 19. h5 {[%clk 0:02:09]}  h6 {[%clk 0:01:46]} 20. Be3 {[%clk 0:02:08]}  Qc7 {[%clk 0:01:40]} 21. Bd4 {[%clk 0:02:02]}  Rfc8 {[%clk 0:01:37]} 22. Rd2 {[%clk 0:01:47]}  Bf4 {[%clk 0:01:31]} 23. Be3 {[%clk 0:01:35]}  Qxc3 {[%clk 0:01:24]} 0-1


[Site "https://www.chess.com"]

[Event "Titled Tuesday Blitz January 31 Late 2023"]
[White "Senthilkumar, Pranav"]
[Black "Szente Varga, Fruzsina"]
[WhiteFideId "2083477"]
[BlackFideId "712264"]
[WhiteElo "1854"]
[BlackElo "2075"]
[Result "0-1"]
[Round "08"]
[TimeControl "180+2"]
[Date "2023.01.31"]
[WhiteClock "0:00:41"]
[BlackClock "0:00:19"]

1. d4 {[%clk 0:03:00]}  Nf6 {[%clk 0:02:58]} 2. Nf3 {[%clk 0:03:00]}  g6 {[%clk 0:02:58]} 3. Bg5 {[%clk 0:02:59]}  Bg7 {[%clk 0:02:58]} 4. Nbd2 {[%clk 0:02:59]}  O-O {[%clk 0:02:58]} 5. c3 {[%clk 0:02:59]}  d5 {[%clk 0:02:58]} 6. e3 {[%clk 0:02:58]}  Bg4 {[%clk 0:02:56]} 7. Be2 {[%clk 0:02:55]}  Nbd7 {[%clk 0:02:47]} 8. h3 {[%clk 0:02:53]}  Bf5 {[%clk 0:02:37]} 9. b4 {[%clk 0:02:51]}  a5 {[%clk 0:02:37]} 10. O-O {[%clk 0:02:44]}  axb4 {[%clk 0:02:33]} 11. cxb4 {[%clk 0:02:44]}  c6 {[%clk 0:02:34]} 12. Bf4 {[%clk 0:02:43]}  Ne4 {[%clk 0:02:30]} 13. Nxe4 {[%clk 0:02:43]}  Bxe4 {[%clk 0:02:29]} 14. Qb3 {[%clk 0:02:42]}  Re8 {[%clk 0:02:24]} 15. Bg3 {[%clk 0:02:35]}  e5 {[%clk 0:02:22]} 16. Nxe5 {[%clk 0:02:30]}  Nxe5 {[%clk 0:02:22]} 17. dxe5 {[%clk 0:02:31]}  Bxe5 {[%clk 0:02:21]} 18. Bxe5 {[%clk 0:02:31]}  Rxe5 {[%clk 0:02:21]} 19. a4 {[%clk 0:02:31]}  Rg5 {[%clk 0:02:05]} 20. f3 {[%clk 0:02:31]}  Bf5 {[%clk 0:02:02]} 21. f4 {[%clk 0:02:31]}  Rg3 {[%clk 0:02:00]} 22. Kh2 {[%clk 0:02:29]}  Qh4 {[%clk 0:01:59]} 23. Kg1 {[%clk 0:02:10]}  Qxh3 {[%clk 0:00:47]} 24. Bf3 {[%clk 0:02:08]}  Bg4 {[%clk 0:00:43]} 25. Ra2 {[%clk 0:01:49]}  Qh5 {[%clk 0:00:42]} 26. Bxg4 {[%clk 0:01:44]}  Qxg4 {[%clk 0:00:43]} 27. Raf2 {[%clk 0:01:38]}  Re8 {[%clk 0:00:42]} 28. Re1 {[%clk 0:01:38]}  h5 {[%clk 0:00:39]} 29. f5 {[%clk 0:01:37]}  h4 {[%clk 0:00:34]} 30. fxg6 {[%clk 0:01:33]}  Qxg6 {[%clk 0:00:34]} 31. Qc2 {[%clk 0:01:25]}  Qxc2 {[%clk 0:00:22]} 32. Rxc2 {[%clk 0:01:26]}  Re4 {[%clk 0:00:23]} 33. Rb1 {[%clk 0:01:23]}  h3 {[%clk 0:00:22]} 34. Kh2 {[%clk 0:01:21]}  Rxg2+ {[%clk 0:00:22]} 35. Rxg2+ {[%clk 0:01:19]}  hxg2 {[%clk 0:00:23]} 36. Kxg2 {[%clk 0:01:18]}  Rxe3 {[%clk 0:00:23]} 37. b5 {[%clk 0:01:18]}  Ra3 {[%clk 0:00:23]} 38. Rb4 {[%clk 0:01:15]}  Kf8 {[%clk 0:00:21]} 39. Kf2 {[%clk 0:01:12]}  Ke7 {[%clk 0:00:21]} 40. bxc6 {[%clk 0:01:12]}  bxc6 {[%clk 0:00:22]} 41. Rb7+ {[%clk 0:01:12]}  Ke6 {[%clk 0:00:23]} 42. Ra7 {[%clk 0:01:12]}  f5 {[%clk 0:00:21]} 43. Ke2 {[%clk 0:01:12]}  f4 {[%clk 0:00:21]} 44. a5 {[%clk 0:01:12]}  Kd6 {[%clk 0:00:21]} 45. Ra8 {[%clk 0:01:04]}  Kc5 {[%clk 0:00:22]} 46. Kd2 {[%clk 0:01:04]}  Kd4 {[%clk 0:00:22]} 47. Kc2 {[%clk 0:01:02]}  f3 {[%clk 0:00:22]} 48. Rf8 {[%clk 0:01:00]}  c5 {[%clk 0:00:19]} 49. Kb2 {[%clk 0:00:57]}  Rxa5 {[%clk 0:00:19]} 50. Rxf3 {[%clk 0:00:57]}  Ke4 {[%clk 0:00:20]} 51. Rh3 {[%clk 0:00:57]}  c4 {[%clk 0:00:20]} 52. Kc2 {[%clk 0:00:57]}  Ra2+ {[%clk 0:00:20]} 53. Kc1 {[%clk 0:00:56]}  Kd4 {[%clk 0:00:20]} 54. Rh4+ {[%clk 0:00:56]}  Kc5 {[%clk 0:00:20]} 55. Rh5 {[%clk 0:00:56]}  Rg2 {[%clk 0:00:19]} 56. Rf5 {[%clk 0:00:55]}  c3 {[%clk 0:00:19]} 57. Rf8 {[%clk 0:00:54]}  Kc4 {[%clk 0:00:19]} 58. Rd8 {[%clk 0:00:46]}  d4 {[%clk 0:00:19]} 59. Kd1 {[%clk 0:00:40]}  Kd3 {[%clk 0:00:18]} 60. Ke1 {[%clk 0:00:40]}  c2 {[%clk 0:00:18]} 61. Rc8 {[%clk 0:00:41]}  Rg1+ {[%clk 0:00:17]} 62. Kf2 {[%clk 0:00:41]}  c1=Q {[%clk 0:00:18]} 63. Rxc1 {[%clk 0:00:41]}  Rxc1 {[%clk 0:00:19]} 64. Kf3 {[%clk 0:00:41]}  Re1 {[%clk 0:00:19]} 0-1


[Site "https://www.chess.com"]

[Event "Titled Tuesday Blitz January 31 Late 2023"]
[White "Kochetov, Andrey"]
[Black "Zampronha, Wladimir Camilo"]
[WhiteFideId "24130532"]
[BlackFideId "2103087"]
[WhiteElo "2165"]
[BlackElo "2176"]
[Result "1-0"]
[Round "08"]
[TimeControl "180+2"]
[Date "2023.01.31"]
[WhiteClock "0:01:36"]
[BlackClock "0:00:42"]

1. e4 {[%clk 0:03:00]}  c5 {[%clk 0:03:00]} 2. Nf3 {[%clk 0:02:57]}  e6 {[%clk 0:03:00]} 3. d4 {[%clk 0:02:57]}  cxd4 {[%clk 0:03:01]} 4. Nxd4 {[%clk 0:02:58]}  Nc6 {[%clk 0:03:02]} 5. Nc3 {[%clk 0:02:58]}  Qc7 {[%clk 0:03:02]} 6. f4 {[%clk 0:02:57]}  a6 {[%clk 0:03:01]} 7. Nxc6 {[%clk 0:02:57]}  bxc6 {[%clk 0:02:58]} 8. Bd3 {[%clk 0:02:57]}  d5 {[%clk 0:02:58]} 9. O-O {[%clk 0:02:56]}  Nf6 {[%clk 0:02:50]} 10. Qf3 {[%clk 0:02:50]}  Rb8 {[%clk 0:02:40]} 11. b3 {[%clk 0:02:46]}  Bc5+ {[%clk 0:02:36]} 12. Be3 {[%clk 0:02:42]}  Bxe3+ {[%clk 0:02:35]} 13. Qxe3 {[%clk 0:02:41]}  Ng4 {[%clk 0:02:32]} 14. Qc5 {[%clk 0:02:41]}  Qb6 {[%clk 0:02:31]} 15. Na4 {[%clk 0:02:40]}  Qxc5+ {[%clk 0:02:27]} 16. Nxc5 {[%clk 0:02:39]}  a5 {[%clk 0:02:17]} 17. h3 {[%clk 0:02:23]}  Nf6 {[%clk 0:02:16]} 18. Rfe1 {[%clk 0:02:22]}  O-O {[%clk 0:02:14]} 19. c4 {[%clk 0:02:21]}  Nh5 {[%clk 0:01:38]} 20. Rf1 {[%clk 0:02:18]}  Rd8 {[%clk 0:01:27]} 21. Rad1 {[%clk 0:02:10]}  Ng3 {[%clk 0:01:10]} 22. Rf3 {[%clk 0:02:09]}  dxe4 {[%clk 0:01:10]} 23. Rxg3 {[%clk 0:02:09]}  exd3 {[%clk 0:01:10]} 24. Rgxd3 {[%clk 0:02:09]}  Re8 {[%clk 0:00:53]} 25. Rd6 {[%clk 0:02:01]}  Rb6 {[%clk 0:00:51]} 26. Kf1 {[%clk 0:01:57]}  Kf8 {[%clk 0:00:51]} 27. Ke2 {[%clk 0:01:50]}  Ke7 {[%clk 0:00:50]} 28. Ke3 {[%clk 0:01:43]}  h6 {[%clk 0:00:49]} 29. g4 {[%clk 0:01:42]}  Ba6 {[%clk 0:00:43]} 30. Rd7+ {[%clk 0:01:39]}  Kf8 {[%clk 0:00:42]} 31. Ra7 {[%clk 0:01:37]}  Bc8 {[%clk 0:00:42]} 32. Rdd7 {[%clk 0:01:36]} 1-0


[Site "https://www.chess.com"]

[Event "Titled Tuesday Blitz January 31 Late 2023"]
[White "Torres Dominguez, David"]
[Black "Donskov, Anatoly"]
[WhiteFideId "2220857"]
[BlackFideId "24143413"]
[WhiteElo "1994"]
[BlackElo "2279"]
[Result "1-0"]
[Round "08"]
[TimeControl "180+2"]
[Date "2023.01.31"]
[WhiteClock "0:00:24"]
[BlackClock "0:00:03"]

1. e4 {[%clk 0:02:56]}  c5 {[%clk 0:02:59]} 2. Nc3 {[%clk 0:02:56]}  e6 {[%clk 0:02:59]} 3. f4 {[%clk 0:02:55]}  d5 {[%clk 0:02:59]} 4. Bb5+ {[%clk 0:02:54]}  Bd7 {[%clk 0:02:59]} 5. Bxd7+ {[%clk 0:02:52]}  Qxd7 {[%clk 0:02:59]} 6. d3 {[%clk 0:02:50]}  d4 {[%clk 0:02:59]} 7. Nb1 {[%clk 0:02:47]}  Nc6 {[%clk 0:03:00]} 8. Nf3 {[%clk 0:02:45]}  f5 {[%clk 0:03:00]} 9. O-O {[%clk 0:02:23]}  fxe4 {[%clk 0:02:50]} 10. dxe4 {[%clk 0:02:22]}  Nf6 {[%clk 0:02:51]} 11. Nbd2 {[%clk 0:02:16]}  Be7 {[%clk 0:02:46]} 12. a4 {[%clk 0:02:16]}  O-O {[%clk 0:02:45]} 13. Re1 {[%clk 0:02:14]}  b6 {[%clk 0:02:39]} 14. Nc4 {[%clk 0:02:14]}  Qc7 {[%clk 0:02:27]} 15. Qe2 {[%clk 0:02:10]}  a6 {[%clk 0:02:24]} 16. Bd2 {[%clk 0:02:02]}  Nd7 {[%clk 0:02:20]} 17. e5 {[%clk 0:01:53]}  Rab8 {[%clk 0:02:12]} 18. Qe4 {[%clk 0:01:50]}  g6 {[%clk 0:01:49]} 19. h4 {[%clk 0:01:31]}  Kg7 {[%clk 0:01:44]} 20. g4 {[%clk 0:01:26]}  Rf7 {[%clk 0:01:06]} 21. Re2 {[%clk 0:01:21]}  Rbf8 {[%clk 0:01:03]} 22. Ng5 {[%clk 0:01:15]}  Bxg5 {[%clk 0:01:03]} 23. hxg5 {[%clk 0:01:15]}  Nb4 {[%clk 0:00:55]} 24. Nd6 {[%clk 0:01:05]}  Re7 {[%clk 0:00:40]} 25. Bxb4 {[%clk 0:01:04]}  cxb4 {[%clk 0:00:40]} 26. Rf1 {[%clk 0:01:00]}  Qc5 {[%clk 0:00:32]} 27. Kg2 {[%clk 0:00:45]}  Nb8 {[%clk 0:00:31]} 28. Rf3 {[%clk 0:00:39]}  Nc6 {[%clk 0:00:30]} 29. Rd3 {[%clk 0:00:35]}  Rd7 {[%clk 0:00:19]} 30. Kg3 {[%clk 0:00:35]}  b5 {[%clk 0:00:13]} 31. axb5 {[%clk 0:00:34]}  axb5 {[%clk 0:00:14]} 32. Rh2 {[%clk 0:00:32]}  Rxd6 {[%clk 0:00:05]} 33. exd6 {[%clk 0:00:30]}  Qxd6 {[%clk 0:00:06]} 34. Rd1 {[%clk 0:00:26]}  e5 {[%clk 0:00:06]} 35. f5 {[%clk 0:00:25]}  Kg8 {[%clk 0:00:01]} 36. Rdh1 {[%clk 0:00:24]}  Rf7 {[%clk 0:00:01]} 37. fxg6 {[%clk 0:00:23]}  Qxg6 {[%clk 0:00:02]} 38. Qxg6+ {[%clk 0:00:23]}  hxg6 {[%clk 0:00:03]} 39. Rh8+ {[%clk 0:00:23]}  Kg7 {[%clk 0:00:03]} 40. R1h7# {[%clk 0:00:24]} 1-0


[Site "https://www.chess.com"]

[Event "Titled Tuesday Blitz January 31 Late 2023"]
[White "Travadon, Loic"]
[Black "Sohier, Julien"]
[WhiteFideId "26092131"]
[BlackFideId "645346"]
[WhiteElo "2461"]
[BlackElo "2214"]
[Result "0-1"]
[Round "08"]
[TimeControl "180+2"]
[Date "2023.01.31"]
[WhiteClock "0:00:47"]
[BlackClock "0:00:53"]

1. e4 {[%clk 0:03:00]}  e5 {[%clk 0:02:59]} 2. Nf3 {[%clk 0:03:00]}  Nc6 {[%clk 0:02:57]} 3. Bb5 {[%clk 0:03:00]}  Nf6 {[%clk 0:02:53]} 4. d3 {[%clk 0:02:55]}  Bc5 {[%clk 0:02:53]} 5. h3 {[%clk 0:02:53]}  O-O {[%clk 0:02:50]} 6. Bg5 {[%clk 0:02:47]}  h6 {[%clk 0:02:48]} 7. Bd2 {[%clk 0:02:45]}  d5 {[%clk 0:02:42]} 8. Nc3 {[%clk 0:02:36]}  dxe4 {[%clk 0:02:42]} 9. dxe4 {[%clk 0:02:33]}  Nd4 {[%clk 0:02:31]} 10. Bd3 {[%clk 0:02:32]}  Re8 {[%clk 0:02:23]} 11. O-O {[%clk 0:02:28]}  c6 {[%clk 0:02:21]} 12. Rb1 {[%clk 0:02:03]}  a5 {[%clk 0:02:20]} 13. a4 {[%clk 0:01:54]}  Qc7 {[%clk 0:02:19]} 14. Qe1 {[%clk 0:01:44]}  Nxf3+ {[%clk 0:02:18]} 15. gxf3 {[%clk 0:01:42]}  Bxh3 {[%clk 0:02:18]} 16. Kh2 {[%clk 0:01:41]}  Bxf1 {[%clk 0:02:18]} 17. Qxf1 {[%clk 0:01:40]}  Re6 {[%clk 0:02:06]} 18. Qh3 {[%clk 0:01:38]}  Kf8 {[%clk 0:01:52]} 19. Rg1 {[%clk 0:01:37]}  Ng8 {[%clk 0:01:40]} 20. Rg2 {[%clk 0:01:35]}  Bd4 {[%clk 0:01:28]} 21. Ne2 {[%clk 0:01:32]}  Bxb2 {[%clk 0:01:26]} 22. Ng3 {[%clk 0:01:32]}  g6 {[%clk 0:01:23]} 23. Bxh6+ {[%clk 0:01:31]}  Nxh6 {[%clk 0:01:23]} 24. Qxh6+ {[%clk 0:01:32]}  Ke7 {[%clk 0:01:20]} 25. Bc4 {[%clk 0:01:26]}  Rf6 {[%clk 0:01:15]} 26. Ne2 {[%clk 0:01:02]}  Qd8 {[%clk 0:01:05]} 27. Kg1 {[%clk 0:00:47]}  Qd1+ {[%clk 0:00:53]} 28. Kh2 {[%clk 0:00:47]}  Qxc2 {[%clk 0:00:53]} 0-1


[Site "https://www.chess.com"]